Workbook

Sheet Accueil
A1: NOMBRE DE REFERENCES | H1: BIO | N1: =H3/A$11 -> 0.4418604651 | P1: ENTREE DE GAMME -26€ | R1: =SUM(Rosés!I18,Blancs!I37,'Bordeaux Sud-Ouest'!I22,Bourgogne!I25,Beaujolais!I23,Languedoc!I36,'Vallée du Rhône'!I26,'Vallée de la Loire'!I25,Etrangers!I24,Champagne!I18) -> 9 | S1: =R1/A$11 -> 0.1046511628
H3: =SUM(Rosés!I10,Blancs!I29,'Bordeaux Sud-Ouest'!I14,Bourgogne!I17,Beaujolais!I15,Languedoc!I28,'Vallée du Rhône'!I18,'Vallée de la Loire'!I17,Etrangers!I16,Champagne!I10) -> 38
H5: NATURE | N5: =H7/A$11 -> 0.1162790698
P6: MILIEU DE GAMME 26€ - 37€ | R6: =SUM(Rosés!I20,Blancs!I39,'Bordeaux Sud-Ouest'!I24,Bourgogne!I27,Beaujolais!I25,Languedoc!I38,'Vallée du Rhône'!I28,'Vallée de la Loire'!I27,Etrangers!I26,Champagne!I20) -> 40 | S6: =R6/A$11 -> 0.4651162791
H7: =SUM(Rosés!I12,Blancs!I31,'Bordeaux Sud-Ouest'!I16,Bourgogne!I19,Beaujolais!I17,Languedoc!I30,'Vallée du Rhône'!I20,'Vallée de la Loire'!I19,Etrangers!I18,Champagne!I12) -> 10
H9: CONVENTIONNEL | N9: =H11/A$11 -> 0.3604651163
A11: =SUM(Rosés!I8,Blancs!I27,'Bordeaux Sud-Ouest'!I12,Bourgogne!I15,Beaujolais!I13,Languedoc!I26,'Vallée du Rhône'!I16,'Vallée de la Loire'!I15,Etrangers!I14,Champagne!I8) -> 86 | H11: =SUM(Rosés!I14,Blancs!I33,'Bordeaux Sud-Ouest'!I18,Bourgogne!I21,Beaujolais!I19,Languedoc!I32,'Vallée du Rhône'!I22,'Vallée de la Loire'!I21,Etrangers!I20,Champagne!I14) -> 31 | P11: HAUT DE GAMME 37€ + | R11: =SUM(Rosés!I22,Blancs!I41,'Bordeaux Sud-Ouest'!I26,Bourgogne!I29,Beaujolais!I27,Languedoc!I40,'Vallée du Rhône'!I30,'Vallée de la Loire'!I29,Champagne!I22) -> 34 | S11: =R11/A$11 -> 0.3953488372
H13: BIODYNAMIE | N13: =H15/A$11 -> 0.1046511628
H15: =SUM(Rosés!I16,Blancs!I35,Bourgogne!I23,Beaujolais!I21,Languedoc!I34,'Vallée du Rhône'!I24,Etrangers!I22,Champagne!I16) -> 9
E18: AJOUT NOUVELLE REFERENCE
E19: Régions | F19: Appelation | G19: Millésime | H19: Cépage(s) | I19: Agrilculture | K19: Fournisseur | L19: PAHT
E20: Rosés
D24: COMMANDES DU MOIS
D25: =SUM(Rosés!T5,Blancs!T24,'Bordeaux Sud-Ouest'!T9,Bourgogne!T12,Beaujolais!T10,Languedoc!T23,'Vallée du Rhône'!T13,'Vallée de la Loire'!T12,Etrangers!T11,Champagne!T5) -> 304
D26: INVENTAIRE DU MOIS
D27: =SUM(Rosés!S5,Blancs!S24,'Bordeaux Sud-Ouest'!S9,Bourgogne!S12,Beaujolais!S10,Languedoc!S23,'Vallée du Rhône'!S13,'Vallée de la Loire'!S12,Etrangers!S11,Champagne!S5) -> 589
D28: DEBUT DE MOIS
D29: =D25+D27 -> 893

Sheet Commandes
A1: Fournisseurs
A2: Didier Bordas 0660995478
A3: Appellation | B3: Millésime | C3: PAHT | D3: COM

Sheet Rosés
B1: Millésime | C1: Cépages | D1: Agriculture | F1: Fournisseurs | G1: PAHT | H1: Coeff supposé | I1: PVTTC Supposé | J1: Rupture (X) | L1: BIO | M1: NATURE | N1: CON | O1: BIODY | P1: EG | Q1: MG | R1: HG | S1: INV | T1: COM | U1: PVEMP | V1: PVGROS
A3: AOP Coteaux d’Aix-en-Provence, Les Monges, Domaine de la Mongestine | B3: 2019 | C3: Grenache noir, Cinsault, Syrah, Vermentino | D3: BIO | F3: Didier Bordas 0660995478 | G3: 6.95 | H3: =_xlfn.IFS(G3<5,4,G3<6.5,3.75,G3<8,3.5,G3<10,3.25,G3<12,3,G3<15,2.85,G3<20,2.8,G3<50,2.65) -> 3.5 | I3: =G3*1.2*H3 -> 29.19 | K3: =IF(J3="X",(TRUE),(FALSE)) -> FALSE | L3: =IF(AND(OR($D3="BIO",$E3="BIO"),$K3=TRUE),1,0) -> 0 | M3: =IF(AND(OR($D3="NATURE",$E3="NATURE"),$K3=TRUE),1,0) -> 0 | N3: =IF(AND(OR($D3="CON",$E3="CON"),$K3=TRUE),1,0) -> 0 | O3: =IF(AND(OR($D3="BIODY",$E3="BIODY"),$K3=TRUE),1,0) -> 0 | P3: =IF(AND($I3<26,$K3=TRUE),1,0) -> 0 | Q3: =IF(AND((I3>25.99)*(I3<37),$K3=TRUE),1,0) -> 0 | R3: =IF(AND(36.99<$I3,$K3=TRUE),1,0) -> 0 | S3: 6 | T3: 0 | U3: =$G3*1.2*2 -> 16.68 | V3: =$G3*1.2*1.2 -> 10.008
A4: AOP Coteaux D’Aix en Provence, Les Éphémères, Domaine Belhambrée | B4: 2019 | C4: Syrah, Grenache, Cinsault | D4: BIO | F4: Palette via Patrons | G4: 4.35 | H4: =_xlfn.IFS(G4<5,4,G4<6.5,3.75,G4<8,3.5,G4<10,3.25,G4<12,3,G4<15,2.85,G4<20,2.8,G4<50,2.65) -> 4 | I4: =G4*1.2*H4 -> 20.88 | K4: =IF(J4="X",(TRUE),(FALSE)) -> FALSE | L4: =IF(AND(OR($D4="BIO",$E4="BIO"),$K4=TRUE),1,0) -> 0 | M4: =IF(AND(OR($D4="NATURE",$E4="NATURE"),$K4=TRUE),1,0) -> 0 | N4: =IF(AND(OR($D4="CON",$E4="CON"),$K4=TRUE),1,0) -> 0 | O4: =IF(AND(OR($D4="BIODY",$E4="BIODY"),$K4=TRUE),1,0) -> 0 | P4: =IF(AND($I4<26,$K4=TRUE),1,0) -> 0 | Q4: =IF(AND((I4>25.99)*(I4<37),$K4=TRUE),1,0) -> 0 | R4: =IF(AND(36.99<$I4,$K4=TRUE),1,0) -> 0 | S4: 51 | T4: 0 | U4: =$G4*1.2*2 -> 10.44 | V4: =$G4*1.2*1.2 -> 6.264
S5: =SUM(S3:S4) -> 57 | T5: =SUM(T3:T4) -> 0
I7: TOTAL VINS | J7: TOTAL RUPTURES
I8: =(ROWS(VINSROSES1))-J8 -> 2 | J8: =COUNTIF(VINSROSES1,"VRAI") -> 0
I9: BIO | J9: BIO
I10: =COUNTIF(AGRIROSES,"BIO")-J10 -> 2 | J10: =SUM(RBIOROSES) -> 0
I11: NATURE | J11: NATURE
I12: =COUNTIF(AGRIROSES,"NATURE")-J12 -> 0 | J12: =SUM(RNATUREROSES) -> 0
I13: CONVENTIONNEL | J13: CONVENTIONNEL
I14: =COUNTIF(AGRIROSES,"CON")-J14 -> 0 | J14: =SUM(RCONROSES) -> 0
I15: BIODYNAMIE | J15: BIODYNAMIE
I16: =COUNTIF(AGRIROSES,"BIODY")-J16 -> 0 | J16: =SUM(RBIODYROSES) -> 0
I17: ENTREE DE GAMME | J17: ENTREE DE GAMME
I18: =COUNTIFS(PVTTCROSES,"<26")-J18 -> 1 | J18: =SUM(REGROSES) -> 0
I19: MILIEU DE GAMME | J19: MILIEU DE GAMME
I20: =SUMPRODUCT((PVTTCROSES>25.99)*(PVTTCROSES<37))-J20 -> 1 | J20: =SUM(RMGROSES) -> 0
I21: HAUT DE GAMME | J21: HAUT DE GAMME
I22: =COUNTIFS(PVTTCROSES,">36,99")-J22 -> 0 | J22: =SUM(RHGROSES) -> 0

Sheet Blancs
B1: Millésime | C1: Cépages | D1: Agriculture | F1: Fournisseurs | G1: PAHT | H1: Coeff supposé | I1: PVTTC Supposé | J1: Rupture (X) | L1: BIO | M1: NATURE | N1: CON | O1: BIODY | P1: EG | Q1: MG | R1: HG | S1: INV | T1: COM | U1: PVEMP | V1: PVGROS
A3: AOC Alsace Grand Cru, Kaefferkopf, Domaine Léon Heitzmann | B3: 2016 | C3: Gewurztraminer, Riesling, Pinot gris | D3: BIODY | F3: Axel Gustoworld 0625338003 | G3: 13.26 | H3: =_xlfn.IFS(G3<5,4,G3<6.5,3.75,G3<8,3.5,G3<10,3.25,G3<12,3,G3<15,2.85,G3<20,2.8,G3<50,2.65) -> 2.85 | I3: =G3*1.2*H3 -> 45.3492 | K3: =IF(J3="X",(TRUE),(FALSE)) -> FALSE | L3: =IF(AND(OR($D3="BIO",$E3="BIO"),$K3=TRUE),1,0) -> 0 | M3: =IF(AND(OR($D3="NATURE",$E3="NATURE"),$K3=TRUE),1,0) -> 0 | N3: =IF(AND(OR($D3="CON",$E3="CON"),$K3=TRUE),1,0) -> 0 | O3: =IF(AND(OR($D3="BIODY",$E3="BIODY"),$K3=TRUE),1,0) -> 0 | P3: =IF(AND($I3<26,$K3=TRUE),1,0) -> 0 | Q3: =IF(AND((I3>25.99)*(I3<37),$K3=TRUE),1,0) -> 0 | R3: =IF(AND(36.99<$I3,$K3=TRUE),1,0) -> 0 | S3: 3 | T3: 0 | U3: =$G3*1.2*2 -> 31.824 | V3: =$G3*1.2*1.2 -> 19.0944
A4: AOC Coteaux du Layon, Les Marcottes, Domaine Pierre Chauvin | B4: 2018 | C4: Chenin | D4: BIO | F4: Aymeric Vignapart 0670827124 | G4: 7.95 | H4: =_xlfn.IFS(G4<5,4,G4<6.5,3.75,G4<8,3.5,G4<10,3.25,G4<12,3,G4<15,2.85,G4<20,2.8,G4<50,2.65) -> 3.5 | I4: 33.39 | K4: FALSE | L4: 0 | M4: 0 | N4: 0 | O4: 0 | P4: 0 | Q4: 0 | R4: 0 | S4: 16 | T4: 0 | U4: =$G4*1.2*2 -> 19.08 | V4: =$G4*1.2*1.2 -> 11.448
A5: AOP Viré-Clessé, Terroir de Clessé, Domaine des Gandines | B5: 2019 | C5: Chardonnay | D5: BIODY | F5: Aymeric Vignapart 0670827124 | G5: 8.9 | H5: =_xlfn.IFS(G5<5,4,G5<6.5,3.75,G5<8,3.5,G5<10,3.25,G5<12,3,G5<15,2.85,G5<20,2.8,G5<50,2.65) -> 3.25 | I5: 34.71 | K5: FALSE | L5: 0 | M5: 0 | N5: 0 | O5: 0 | P5: 0 | Q5: 0 | R5: 0 | S5: 30 | T5: 12 | U5: =$G5*1.2*2 -> 21.36 | V5: =$G5*1.2*1.2 -> 12.816
A6: AOC Bordeaux, Lion noir, Pierre-Henri Cosyns | B6: 2018 | C6: Sauvignon gris, Semillon, Muscadelle | D6: BIO | F6: Aymeric Vignapart 0670827124 | G6: 4.9 | H6: =_xlfn.IFS(G6<5,4,G6<6.5,3.75,G6<8,3.5,G6<10,3.25,G6<12,3,G6<15,2.85,G6<20,2.8,G6<50,2.65) -> 4 | I6: 23.52 | K6: FALSE | L6: 0 | M6: 0 | N6: 0 | O6: 0 | P6: 0 | Q6: 0 | R6: 0 | S6: 3 | T6: 0 | U6: 11.76 | V6: 7.056
A7: AOP Côtes du Roussillon, Mas Janeil, François Lurton | B7: 2015 | C7: Macabeu, Grenache gris | D7: CON | F7: Biaggio Vinom 0778720063 | G7: 11.5 | H7: =_xlfn.IFS(G7<5,4,G7<6.5,3.75,G7<8,3.5,G7<10,3.25,G7<12,3,G7<15,2.85,G7<20,2.8,G7<50,2.65) -> 3 | I7: 41.4 | K7: FALSE | L7: 0 | M7: 0 | N7: 0 | O7: 0 | P7: 0 | Q7: 0 | R7: 0 | S7: 10 | T7: 0 | U7: 27.6 | V7: 16.56
A8: AOC Montlouis-sur-Loire, Les Terres Turones, Dominique & Philippe Ivancic | B8: 2017 | C8: Chenin | D8: CON | F8: Biaggio Vinom 0778720063 | G8: 10 | H8: =_xlfn.IFS(G8<5,4,G8<6.5,3.75,G8<8,3.5,G8<10,3.25,G8<12,3,G8<15,2.85,G8<20,2.8,G8<50,2.65) -> 3 | I8: 36 | K8: FALSE | L8: 0 | M8: 0 | N8: 0 | O8: 0 | P8: 0 | Q8: 0 | R8: 0 | S8: 6 | T8: 0 | U8: 24 | V8: 14.4
A9: IGP Pays D’OC, Vermentino, Domaine de Cantaussel | B9: 2018 | C9: Vermentino | D9: BIO | F9: Cédric Schiltz 0612108579 | G9: 7.75 | H9: =_xlfn.IFS(G9<5,4,G9<6.5,3.75,G9<8,3.5,G9<10,3.25,G9<12,3,G9<15,2.85,G9<20,2.8,G9<50,2.65) -> 3.5 | I9: 32.55 | K9: FALSE | L9: 0 | M9: 0 | N9: 0 | O9: 0 | P9: 0 | Q9: 0 | R9: 0 | S9: 5 | T9: 0 | U9: 18.6 | V9: 11.16
A10: AOP Chinon, Clair de Lune, Domaine Jourdan | B10: 2018 | C10: Chenin | D10: BIODY | F10: Didier Bordas 0660995478 | G10: 12.67 | H10: =_xlfn.IFS(G10<5,4,G10<6.5,3.75,G10<8,3.5,G10<10,3.25,G10<12,3,G10<15,2.85,G10<20,2.8,G10<50,2.65) -> 2.85 | I10: 43.3314 | K10: FALSE | L10: 0 | M10: 0 | N10: 0 | O10: 0 | P10: 0 | Q10: 0 | R10: 0 | T10: 6 | U10: 30.408 | V10: 18.2448
A11: VDF Loire, L’enfant rebelle, Antoine de la Farge | B11: 2019 | C11: Sauvignon | D11: CON | F11: Didier Bordas 0660995478 | G11: 6.15 | H11: =_xlfn.IFS(G11<5,4,G11<6.5,3.75,G11<8,3.5,G11<10,3.25,G11<12,3,G11<15,2.85,G11<20,2.8,G11<50,2.65) -> 3.75 | I11: 27.675 | K11: FALSE | L11: 0 | M11: 0 | N11: 0 | O11: 0 | P11: 0 | Q11: 0 | R11: 0 | S11: 1 | T11: 0 | U11: 14.76 | V11: 8.856
A12: AOC Chablis, Drouhin.Vaudon, Joseph Drouhin | B12: 2017 | C12: Chardonnay | D12: BIODY | F12: Didier Bordas 0660995478 | G12: 9.5 | H12: =_xlfn.IFS(G12<5,4,G12<6.5,3.75,G12<8,3.5,G12<10,3.25,G12<12,3,G12<15,2.85,G12<20,2.8,G12<50,2.65) -> 3.25 | I12: 37.05 | K12: FALSE | L12: 0 | M12: 0 | N12: 0 | O12: 0 | P12: 0 | Q12: 0 | R12: 0 | S12: 11 | T12: 0 | U12: 22.8 | V12: 13.68
A13: AOC Sancerre, La Chatellenie, Joseph Mellot | B13: 2018 | C13: Sauvignon | D13: CON | F13: Didier Bordas 0660995478 | G13: 9.29 | H13: =_xlfn.IFS(G13<5,4,G13<6.5,3.75,G13<8,3.5,G13<10,3.25,G13<12,3,G13<15,2.85,G13<20,2.8,G13<50,2.65) -> 3.25 | I13: 36.231 | K13: FALSE | L13: 0 | M13: 0 | N13: 0 | O13: 0 | P13: 0 | Q13: 0 | R13: 0 | S13: 12 | T13: 0 | U13: 22.296 | V13: 13.3776
A14: AOP Saumur, Clos des Oratoriens, Dame de Chaintres | B14: 2019 | C14: Chenin | D14: BIO | F14: Didier Bordas 0660995478 | G14: 10.4 | H14: =_xlfn.IFS(G14<5,4,G14<6.5,3.75,G14<8,3.5,G14<10,3.25,G14<12,3,G14<15,2.85,G14<20,2.8,G14<50,2.65) -> 3 | I14: 37.44 | K14: FALSE | L14: 0 | M14: 0 | N14: 0 | O14: 0 | P14: 0 | Q14: 0 | R14: 0 | S14: 16 | T14: 0 | U14: 24.96 | V14: 14.976
A15: AOP Anjou, Bouillon aux Dames, Les Équilibristes | B15: 2018 | C15: Chenin | D15: CON | F15: Nicolas Jaboulet 0680320770 | G15: 7.6 | H15: =_xlfn.IFS(G15<5,4,G15<6.5,3.75,G15<8,3.5,G15<10,3.25,G15<12,3,G15<15,2.85,G15<20,2.8,G15<50,2.65) -> 3.5 | I15: 31.92 | K15: FALSE | L15: 0 | M15: 0 | N15: 0 | O15: 0 | P15: 0 | Q15: 0 | R15: 0 | S15: 7 | T15: 6 | U15: 18.24 | V15: 10.944
A16: AOP Picpoul de Pinet, Pic Poul, les Équilibristes | B16: 2019 | C16: Picpoul | D16: CON | F16: Nicolas Jaboulet 0680320770 | G16: 6.85 | H16: =_xlfn.IFS(G16<5,4,G16<6.5,3.75,G16<8,3.5,G16<10,3.25,G16<12,3,G16<15,2.85,G16<20,2.8,G16<50,2.65) -> 3.5 | I16: 28.77 | K16: FALSE | L16: 0 | M16: 0 | N16: 0 | O16: 0 | P16: 0 | Q16: 0 | R16: 0 | S16: 14 | T16: 18 | U16: 16.44 | V16: 9.864
A17: AOP Crozes-Hermitage, Les Hauts d’Eole, Cave de Tain | B17: 2018 | C17: 70%Marsanne, 30%Roussanne | D17: CON | F17: Phillippe Potier 0680136645 | G17: 10 | H17: =_xlfn.IFS(G17<5,4,G17<6.5,3.75,G17<8,3.5,G17<10,3.25,G17<12,3,G17<15,2.85,G17<20,2.8,G17<50,2.65) -> 3 | I17: 36 | K17: FALSE | L17: 0 | M17: 0 | N17: 0 | O17: 0 | P17: 0 | Q17: 0 | R17: 0 | S17: 1 | T17: 6 | U17: 24 | V17: 14.4
A18: IGT Venero, Alla costiera, Terreni Bianchi | B18: 2016 | C18: Garganega, Moscato, Marzemina bianca | D18: CON | F18: X | G18: 5.5 | H18: =_xlfn.IFS(G18<5,4,G18<6.5,3.75,G18<8,3.5,G18<10,3.25,G18<12,3,G18<15,2.85,G18<20,2.8,G18<50,2.65) -> 3.75 | I18: 24.75 | K18: FALSE | L18: 0 | M18: 0 | N18: 0 | O18: 0 | P18: 0 | Q18: 0 | R18: 0 | S18: 6 | T18: 0 | U18: 13.2 | V18: 7.92
A19: AOC Costières de Nîmes, Château de Valcombe | B19: 2018 | C19: Roussanne, Marsanne | D19: CON | F19: X | G19: 5.15 | H19: =_xlfn.IFS(G19<5,4,G19<6.5,3.75,G19<8,3.5,G19<10,3.25,G19<12,3,G19<15,2.85,G19<20,2.8,G19<50,2.65) -> 3.75 | I19: 23.175 | K19: FALSE | L19: 0 | M19: 0 | N19: 0 | O19: 0 | P19: 0 | Q19: 0 | R19: 0 | S19: 1 | T19: 0 | U19: 12.36 | V19: 7.416
A20: AOP Limoux, Château de Gaure, Pierre Fabre | B20: 2018 | C20: 70%Chardonnay, 30%Chenin | D20: CON | F20: X | G20: 7.81 | H20: =_xlfn.IFS(G20<5,4,G20<6.5,3.75,G20<8,3.5,G20<10,3.25,G20<12,3,G20<15,2.85,G20<20,2.8,G20<50,2.65) -> 3.5 | I20: 32.802 | K20: FALSE | L20: 0 | M20: 0 | N20: 0 | O20: 0 | P20: 0 | Q20: 0 | R20: 0 | S20: 9 | T20: 0 | U20: 18.744 | V20: 11.2464
A21: IGP Pays d’Hérault, Apollo 93, Yann Le Bouler | B21: 2017 | C21: Viognier | D21: BIO | F21: X | G21: 7.9 | H21: =_xlfn.IFS(G21<5,4,G21<6.5,3.75,G21<8,3.5,G21<10,3.25,G21<12,3,G21<15,2.85,G21<20,2.8,G21<50,2.65) -> 3.5 | I21: 33.18 | K21: FALSE | L21: 0 | M21: 0 | N21: 0 | O21: 0 | P21: 0 | Q21: 0 | R21: 0 | S21: 7 | T21: 0 | U21: 18.96 | V21: 11.376
A22: IGP Mont-Baudile-Hérault, Mas D’Amile | B22: 2017 | C22: Terret blanc | D22: CON | F22: X | G22: 12 | H22: =_xlfn.IFS(G22<5,4,G22<6.5,3.75,G22<8,3.5,G22<10,3.25,G22<12,3,G22<15,2.85,G22<20,2.8,G22<50,2.65) -> 2.85 | I22: 41.04 | K22: FALSE | L22: 0 | M22: 0 | N22: 0 | O22: 0 | P22: 0 | Q22: 0 | R22: 0 | S22: 5 | T22: 0 | U22: 28.8 | V22: 17.28
A23: AOC Valençay, Vieilles Vignes, Domaine André Fouassier | B23: 2018 | C23: Sauvignon, Chardonnay, Pineau gris | D23: CON | F23: X | G23: 5.5 | H23: =_xlfn.IFS(G23<5,4,G23<6.5,3.75,G23<8,3.5,G23<10,3.25,G23<12,3,G23<15,2.85,G23<20,2.8,G23<50,2.65) -> 3.75 | I23: 24.75 | K23: FALSE | L23: 0 | M23: 0 | N23: 0 | O23: 0 | P23: 0 | Q23: 0 | R23: 0 | S23: 1 | T23: 0 | U23: 13.2 | V23: 7.92
S24: =SUM(S3:S23) -> 164 | T24: =SUM(T3:T23) -> 48
I26: TOTAL VINS | J26: TOTAL RUPTURES
I27: =(ROWS(VINSBLANCS))-J27 -> 21 | J27: =COUNTIF(VINSBLANCS,"VRAI") -> 0
I28: BIO | J28: BIO
I29: =COUNTIF(AGRIVINSBLANCS,"BIO")-J29 -> 5 | J29: =SUM(RBIOBLANCS) -> 0
I30: NATURE | J30: NATURE
I31: =COUNTIF(AGRIVINSBLANCS,"NATURE")-J31 -> 0 | J31: =SUM(RNATUREBLANCS) -> 0
I32: CONVENTIONNEL | J32: CONVENTIONNEL
I33: =COUNTIF(AGRIVINSBLANCS,"CON")-J33 -> 12 | J33: =SUM(RCONBLANCS) -> 0
I34: BIODYNAMIE | J34: BIODYNAMIE
I35: =COUNTIF(AGRIVINSBLANCS,"BIODY")-J35 -> 3 | J35: =SUM(RBIODYBLANCS) -> 0
I36: ENTREE DE GAMME | J36: ENTREE DE GAMME
I37: =COUNTIFS(PVTTCBLANCS,"<26")-J37 -> 4 | J37: =SUM(regbla) -> 0
I38: MILIEU DE GAMME | J38: MILIEU DE GAMME
I39: =SUMPRODUCT((PVTTCBLANCS>25.99)*(PVTTCBLANCS<37))-J39 -> 11 | J39: =SUM(RMGBLA) -> 0
I40: HAUT DE GAMME | J40: HAUT DE GAMME
I41: =COUNTIFS(PVTTCBLANCS,">36,99")-J41 -> 6 | J41: =SUM(RHGBLA) -> 0

Sheet Bordeaux Sud-Ouest
B1: Millésime | C1: Cépages | D1: Agriculture | F1: Fournisseurs | G1: PAHT | H1: Coeff supposé | I1: PVTTC Supposé | J1: Rupture (X) | L1: BIO | M1: NATURE | N1: CON | O1: BIODY | P1: EG | Q1: MG | R1: HG | S1: INV | T1: COM | U1: PVEMP | V1: PVGROS
A3: AOC Bordeaux, Origin de Kressmann | B3: 2018 | C3: Merlot | D3: NATURE | F3: Camille 0674705816 | G3: 4.7 | H3: =_xlfn.IFS(G3<5,4,G3<6.5,3.75,G3<8,3.5,G3<10,3.25,G3<12,3,G3<15,2.85,G3<20,2.8,G3<50,2.65) -> 4 | I3: =G3*1.2*H3 -> 22.56 | K3: =IF(J3="X",(TRUE),(FALSE)) -> FALSE | L3: =IF(AND(OR($D3="BIO",$E3="BIO"),$K3=TRUE),1,0) -> 0 | M3: =IF(AND(OR($D3="NATURE",$E3="NATURE"),$K3=TRUE),1,0) -> 0 | N3: =IF(AND(OR($D3="CON",$E3="CON"),$K3=TRUE),1,0) -> 0 | O3: =IF(AND(OR($D3="BIODY",$E3="BIODY"),$K3=TRUE),1,0) -> 0 | P3: =IF(AND($I3<26,$K3=TRUE),1,0) -> 0 | Q3: =IF(AND((I3>25.99)*(I3<37),$K3=TRUE),1,0) -> 0 | R3: =IF(AND(36.99<$I3,$K3=TRUE),1,0) -> 0 | S3: 14 | T3: 0 | U3: =$G3*1.2*2 -> 11.28 | V3: =$G3*1.2*1.2 -> 6.768
A4: AOP Saint Emilion Grand Cru, Petit Corbin-Despagne | B4: 2016 | C4: Merlot, Cabernet Franc | D4: BIO | F4: Didier Bordas 0660995478 | G4: 18 | H4: =_xlfn.IFS(G4<5,4,G4<6.5,3.75,G4<8,3.5,G4<10,3.25,G4<12,3,G4<15,2.85,G4<20,2.8,G4<50,2.65) -> 2.8 | I4: =G4*1.2*H4 -> 60.48 | K4: FALSE | L4: 0 | M4: 0 | N4: 0 | O4: 0 | P4: 0 | Q4: 0 | R4: 0 | T4: 6 | U4: =$G4*1.2*2 -> 43.2 | V4: =$G4*1.2*1.2 -> 25.92
A5: AOC Côtes de Bordeaux, Château moulin de Rioucreux | B5: 2016 | C5: 95%Merlot, 5%Malbec | D5: BIO | F5: Didier Bordas 0660995478 | G5: 6.5 | H5: =_xlfn.IFS(G5<5,4,G5<6.5,3.75,G5<8,3.5,G5<10,3.25,G5<12,3,G5<15,2.85,G5<20,2.8,G5<50,2.65) -> 3.5 | I5: 27.3 | K5: FALSE | L5: 0 | M5: 0 | N5: 0 | O5: 0 | P5: 0 | Q5: 0 | R5: 0 | S5: 1 | T5: 18 | U5: 15.6 | V5: 9.36
A6: AOC Côtes de Bordeaux, Réserve de Famille, Château Martet | B6: 2016 | C6: Merlot | D6: CON | F6: Didier Bordas 0660995478 | G6: 22.75 | H6: =_xlfn.IFS(G6<5,4,G6<6.5,3.75,G6<8,3.5,G6<10,3.25,G6<12,3,G6<15,2.85,G6<20,2.8,G6<50,2.65) -> 2.65 | I6: =G6*1.2*H6 -> 72.345 | K6: FALSE | L6: 0 | M6: 0 | N6: 0 | O6: 0 | P6: 0 | Q6: 0 | R6: 0 | S6: 16 | T6: 0 | U6: 54.6 | V6: 32.76
A7: AOC Pessac Léognan, La Lignée, Château Seguin | B7: 2016 | C7: Cabernet Sauvignon, Merlot | D7: CON | F7: Didier Bordas 0660995478 | G7: 15.29 | H7: =_xlfn.IFS(G7<5,4,G7<6.5,3.75,G7<8,3.5,G7<10,3.25,G7<12,3,G7<15,2.85,G7<20,2.8,G7<50,2.65) -> 2.8 | I7: =G7*1.2*H7 -> 51.3744 | K7: FALSE | L7: 0 | M7: 0 | N7: 0 | O7: 0 | P7: 0 | Q7: 0 | R7: 0 | S7: 8 | T7: 0 | U7: 36.696 | V7: 22.0176
A8: VDF Sud Ouest, Tu Vin plus aux soirées, Fabien Jouves | B8: 2017 | C8: Malbec, Merlot | D8: BIO | E8: NATURE | F8: X | G8: 7.9 | H8: =_xlfn.IFS(G8<5,4,G8<6.5,3.75,G8<8,3.5,G8<10,3.25,G8<12,3,G8<15,2.85,G8<20,2.8,G8<50,2.65) -> 3.5 | I8: =G8*1.2*H8 -> 33.18 | K8: FALSE | L8: 0 | M8: 0 | N8: 0 | O8: 0 | P8: 0 | Q8: 0 | R8: 0 | S8: 1 | T8: 0 | U8: 18.96 | V8: 11.376
S9: =SUM(S3:S8) -> 40 | T9: =SUM(T3:T8) -> 24
I11: TOTAL VINS | J11: TOTAL RUPTURES
I12: =(ROWS(VINSBDX))-J12 -> 6 | J12: =COUNTIF(VINSBDX,"VRAI") -> 0
I13: BIO | J13: BIO
I14: =COUNTIF(AGRIBDX1,"BIO")-J14 -> 3 | J14: =SUM(RBIOBDX) -> 0
I15: NATURE | J15: NATURE
I16: =COUNTIF(AGRIBDX1,"NATURE")-J16 -> 2 | J16: =SUM(RNATUREBDX) -> 0
I17: CONVENTIONNEL | J17: CONVENTIONNEL
I18: =COUNTIF(AGRIBDX1,"CON")-J18 -> 2 | J18: =SUM(RCONBDX) -> 0
I19: BIODYNAMIE | J19: BIODYNAMIE
I20: =COUNTIF(AGRIBDX1,"BIODY")-J20 -> 0 | J20: =SUM(RBIODYBDX) -> 0
I21: ENTREE DE GAMME | J21: ENTREE DE GAMME
I22: =COUNTIFS(PVTTCBDX,"<26")-J22 -> 1 | J22: =SUM(REGBOR) -> 0
I23: MILIEU DE GAMME | J23: MILIEU DE GAMME
I24: =SUMPRODUCT((PVTTCBDX>25.99)*(PVTTCBDX<37))-J24 -> 2 | J24: =SUM(RMGBOR) -> 0
I25: HAUT DE GAMME | J25: HAUT DE GAMME
I26: =COUNTIFS(PVTTCBDX,">36,99")-J26 -> 3 | J26: =SUM(RHGBOR) -> 0

Sheet Bourgogne
B1: Millésime | C1: Cépages | D1: Agriculture | F1: Fournisseurs | G1: PAHT | H1: Coeff supposé | I1: PVTTC Supposé | J1: Rupture (X) | L1: BIO | M1: NATURE | N1: CON | O1: BIODY | P1: EG | Q1: MG | R1: HG | S1: INV | T1: COM | U1: PVEMP | V1: PVGROS
A3: AOC Bourgogne, Pinot noir, Domaine Chardigny | B3: 2019 | C3: Pinot noir | D3: BIO | F3: Aymeric Vignapart 0670827124 | G3: 8 | H3: =_xlfn.IFS(G3<5,4,G3<6.5,3.75,G3<8,3.5,G3<10,3.25,G3<12,3,G3<15,2.85,G3<20,2.8,G3<50,2.65) -> 3.25 | I3: =G3*1.2*H3 -> 31.2 | K3: =IF(J3="X",(TRUE),(FALSE)) -> FALSE | L3: =IF(AND(OR($D3="BIO",$E3="BIO"),$K3=TRUE),1,0) -> 0 | M3: =IF(AND(OR($D3="NATURE",$E3="NATURE"),$K3=TRUE),1,0) -> 0 | N3: =IF(AND(OR($D3="CON",$E3="CON"),$K3=TRUE),1,0) -> 0 | O3: =IF(AND(OR($D3="BIODY",$E3="BIODY"),$K3=TRUE),1,0) -> 0 | P3: =IF(AND($I3<26,$K3=TRUE),1,0) -> 0 | Q3: =IF(AND((I3>25.99)*(I3<37),$K3=TRUE),1,0) -> 0 | R3: =IF(AND(36.99<$I3,$K3=TRUE),1,0) -> 0 | S3: 18 | T3: 12 | U3: =$G3*1.2*2 -> 19.2 | V3: =$G3*1.2*1.2 -> 11.52
A4: AOC Vosne-Romanée, Vieilles Vignes,Domaine Michel Magnien | B4: 2018 | C4: Pinot noir | D4: BIO | F4: Aymeric Vignapart 0670827124 | G4: 39.1 | H4: =_xlfn.IFS(G4<5,4,G4<6.5,3.75,G4<8,3.5,G4<10,3.25,G4<12,3,G4<15,2.85,G4<20,2.8,G4<50,2.65) -> 2.65 | I4: 124.338 | K4: FALSE | L4: 0 | M4: 0 | N4: 0 | O4: 0 | P4: 0 | Q4: 0 | R4: 0 | T4: 2 | U4: =$G4*1.2*2 -> 93.84 | V4: =$G4*1.2*1.2 -> 56.304
A5: AOC Monthelie 1er Cru, Sur la Velle, Eric de Surmain | B5: 2015 | C5: Pinot noir | D5: BIO | F5: Aymeric Vignapart 0670827124 | G5: 23.65 | H5: =_xlfn.IFS(G5<5,4,G5<6.5,3.75,G5<8,3.5,G5<10,3.25,G5<12,3,G5<15,2.85,G5<20,2.8,G5<50,2.65) -> 2.65 | I5: 75.207 | K5: FALSE | L5: 0 | M5: 0 | N5: 0 | O5: 0 | P5: 0 | Q5: 0 | R5: 0 | T5: 2 | U5: 56.76 | V5: 34.056
A6: AOP Hautes Côtes de Nuits, Domaine Hudelot | B6: 2018 | C6: Pinot noir | D6: BIO | F6: Biaggio Vinom 0778720063 | G6: 10 | H6: =_xlfn.IFS(G6<5,4,G6<6.5,3.75,G6<8,3.5,G6<10,3.25,G6<12,3,G6<15,2.85,G6<20,2.8,G6<50,2.65) -> 3 | I6: 36 | K6: FALSE | L6: 0 | M6: 0 | N6: 0 | O6: 0 | P6: 0 | Q6: 0 | R6: 0 | T6: 6 | U6: 24 | V6: 14.4
A7: AOC Alsace, Tradition, Domaine Stentz-Buecher | B7: 2017 | C7: Pinot noir | D7: BIODY | F7: Didier Bordas 0660995478 | G7: 9.8 | H7: =_xlfn.IFS(G7<5,4,G7<6.5,3.75,G7<8,3.5,G7<10,3.25,G7<12,3,G7<15,2.85,G7<20,2.8,G7<50,2.65) -> 3.25 | I7: 38.22 | K7: FALSE | L7: 0 | M7: 0 | N7: 0 | O7: 0 | P7: 0 | Q7: 0 | R7: 0 | T7: 6 | U7: 23.52 | V7: 14.112
A8: AOP Santenay, Le temps des cerises, Domaine Olivier | B8: 2017 | C8: Pinot noir | D8: BIODY | F8: Didier Bordas 0660995478 | G8: 14.92 | H8: =_xlfn.IFS(G8<5,4,G8<6.5,3.75,G8<8,3.5,G8<10,3.25,G8<12,3,G8<15,2.85,G8<20,2.8,G8<50,2.65) -> 2.85 | I8: 51.0264 | K8: FALSE | L8: 0 | M8: 0 | N8: 0 | O8: 0 | P8: 0 | Q8: 0 | R8: 0 | T8: 6 | U8: 35.808 | V8: 21.4848
A9: AOC Pommard, Dubreuil-Fontaine | B9: 2017 | C9: Pinot noir | D9: CON | F9: Didier Bordas 0660995478 | G9: 19.3 | H9: =_xlfn.IFS(G9<5,4,G9<6.5,3.75,G9<8,3.5,G9<10,3.25,G9<12,3,G9<15,2.85,G9<20,2.8,G9<50,2.65) -> 2.8 | I9: 64.848 | K9: FALSE | L9: 0 | M9: 0 | N9: 0 | O9: 0 | P9: 0 | Q9: 0 | R9: 0 | S9: 1 | T9: 0 | U9: 46.32 | V9: 27.792
A10: AOC Côtes d'Auxerre, Domaine Bersan | B10: 2018 | C10: Pinot noir | D10: BIO | F10: Emmanuel Meffre 0672386975 | G10: 9.3 | H10: =_xlfn.IFS(G10<5,4,G10<6.5,3.75,G10<8,3.5,G10<10,3.25,G10<12,3,G10<15,2.85,G10<20,2.8,G10<50,2.65) -> 3.25 | I10: 36.27 | K10: FALSE | L10: 0 | M10: 0 | N10: 0 | O10: 0 | P10: 0 | Q10: 0 | R10: 0 | T10: 18 | U10: 22.32 | V10: 13.392
A11: AOC Irancy, Domaine Bersan | B11: 2018 | C11: Pinot noir, César | D11: BIO | F11: Emmanuel Meffre 0672386975 | G11: 9.5 | H11: =_xlfn.IFS(G11<5,4,G11<6.5,3.75,G11<8,3.5,G11<10,3.25,G11<12,3,G11<15,2.85,G11<20,2.8,G11<50,2.65) -> 3.25 | I11: 37.05 | K11: FALSE | L11: 0 | M11: 0 | N11: 0 | O11: 0 | P11: 0 | Q11: 0 | R11: 0 | T11: 18 | U11: 22.8 | V11: 13.68
S12: =SUM(S3:S11) -> 19 | T12: =SUM(T3:T11) -> 70
I14: TOTAL VINS | J14: TOTAL RUPTURES
I15: =(ROWS(VINSBOURG))-J15 -> 9 | J15: =COUNTIF(VINSBOURG,"VRAI") -> 0
I16: BIO | J16: BIO
I17: =COUNTIF(AGRIBOUR,"BIO")-J17 -> 6 | J17: =SUM(RBIOBOUR) -> 0
I18: NATURE | J18: NATURE
I19: =COUNTIF(AGRIBOUR,"NATURE")-J19 -> 0 | J19: =SUM(RNATUREBOUR) -> 0
I20: CONVENTIONNEL | J20: CONVENTIONNEL
I21: =COUNTIF(AGRIBOUR,"CON")-J21 -> 1 | J21: =SUM(RCONBOUR) -> 0
I22: BIODYNAMIE | J22: BIODYNAMIE
I23: =COUNTIF(AGRIBOUR,"BIODY")-J23 -> 2 | J23: =SUM(RBIODYBOUR) -> 0
I24: ENTREE DE GAMME | J24: ENTREE DE GAMME
I25: =COUNTIFS(PVTTCBOUR,"<26")-J25 -> 0 | J25: =SUM(REGBOU) -> 0
I26: MILIEU DE GAMME | J26: MILIEU DE GAMME
I27: =SUMPRODUCT((PVTTCBOUR>25.99)*(PVTTCBOUR<37))-J27 -> 3 | J27: =SUM(RMGBOU) -> 0
I28: HAUT DE GAMME | J28: HAUT DE GAMME
I29: =COUNTIFS(PVTTCBOUR,">36,99")-J29 -> 6 | J29: =SUM(RHGBOU) -> 0

Sheet Beaujolais
B1: Millésime | C1: Cépages | D1: Agriculture | F1: Fournisseurs | G1: PAHT | H1: Coeff supposé | I1: PVTTC Supposé | J1: Rupture (X) | L1: BIO | M1: NATURE | N1: CON | O1: BIODY | P1: EG | Q1: MG | R1: HG | S1: INV | T1: COM | U1: PVEMP | V1: PVGROS
A3: AOC Beaujolais Villages, Domaine Victor Sornin | B3: 2020 | C3: Gamay | D3: BIO | F3: Aymeric Vignapart 0670827124 | G3: 5.55 | H3: =_xlfn.IFS(G3<5,4,G3<6.5,3.75,G3<8,3.5,G3<10,3.25,G3<12,3,G3<15,2.85,G3<20,2.8,G3<50,2.65) -> 3.75 | I3: =G3*1.2*H3 -> 24.975 | J3: x | K3: =IF(J3="X",(TRUE),(FALSE)) -> TRUE | L3: =IF(AND(OR($D3="BIO",$E3="BIO"),$K3=TRUE),1,0) -> 1 | M3: =IF(AND(OR($D3="NATURE",$E3="NATURE"),$K3=TRUE),1,0) -> 0 | N3: =IF(AND(OR($D3="CON",$E3="CON"),$K3=TRUE),1,0) -> 0 | O3: =IF(AND(OR($D3="BIODY",$E3="BIODY"),$K3=TRUE),1,0) -> 0 | P3: =IF(AND($I3<26,$K3=TRUE),1,0) -> 1 | Q3: =IF(AND((I3>25.99)*(I3<37),$K3=TRUE),1,0) -> 0 | R3: =IF(AND(36.99<$I3,$K3=TRUE),1,0) -> 0 | T3: 0 | U3: =$G3*1.2*2 -> 13.32 | V3: =$G3*1.2*1.2 -> 7.992
A4: AOC Fleurie, Grands Fers, Christian Bernard | B4: 2018 | C4: Gamay | D4: NATURE | E4: NATURE | F4: Biaggio Vinom 0778720063 | G4: 6.9 | H4: =_xlfn.IFS(G4<5,4,G4<6.5,3.75,G4<8,3.5,G4<10,3.25,G4<12,3,G4<15,2.85,G4<20,2.8,G4<50,2.65) -> 3.5 | I4: 28.98 | K4: FALSE | L4: 0 | M4: 0 | N4: 0 | O4: 0 | P4: 0 | Q4: 0 | R4: 0 | S4: 1 | T4: 6 | U4: =$G4*1.2*2 -> 16.56 | V4: =$G4*1.2*1.2 -> 9.936
A5: AOP Morgon, La Côte du Py, Domaine Marcel Joubert | B5: 2018 | C5: Gamay | D5: NATURE | F5: Biaggio Vinom 0778720063 | G5: 11.25 | H5: =_xlfn.IFS(G5<5,4,G5<6.5,3.75,G5<8,3.5,G5<10,3.25,G5<12,3,G5<15,2.85,G5<20,2.8,G5<50,2.65) -> 3 | I5: 40.5 | K5: FALSE | L5: 0 | M5: 0 | N5: 0 | O5: 0 | P5: 0 | Q5: 0 | R5: 0 | T5: 6 | U5: 27 | V5: 16.2
A6: AOP Beaujolais, Beaujolais is not dead, Domaine Chasselay | B6: 2020 | C6: Gamay | D6: BIO | F6: Emmanuel Meffre 0672386975 | G6: 7.06 | H6: =_xlfn.IFS(G6<5,4,G6<6.5,3.75,G6<8,3.5,G6<10,3.25,G6<12,3,G6<15,2.85,G6<20,2.8,G6<50,2.65) -> 3.5 | I6: 29.652 | K6: FALSE | L6: 0 | M6: 0 | N6: 0 | O6: 0 | P6: 0 | Q6: 0 | R6: 0 | T6: 18 | U6: 16.944 | V6: 10.1664
A7: VDF Je t'aime mais j'ai soif, Domaine Chasselay | B7: 2020 | C7: Gamay | D7: BIO | F7: Emmanuel Meffre 0672386975 | G7: 5.46 | H7: =_xlfn.IFS(G7<5,4,G7<6.5,3.75,G7<8,3.5,G7<10,3.25,G7<12,3,G7<15,2.85,G7<20,2.8,G7<50,2.65) -> 3.75 | I7: 24.57 | K7: FALSE | L7: 0 | M7: 0 | N7: 0 | O7: 0 | P7: 0 | Q7: 0 | R7: 0 | T7: 18 | U7: 13.104 | V7: 7.8624
A8: AOP Moulin-À-Vent, Famille Chasselay | B8: 2016 | C8: Gamay | D8: BIO | F8: Emmanuel Meffre 0672386975 | G8: 10.76 | H8: =_xlfn.IFS(G8<5,4,G8<6.5,3.75,G8<8,3.5,G8<10,3.25,G8<12,3,G8<15,2.85,G8<20,2.8,G8<50,2.65) -> 3 | I8: 38.736 | K8: FALSE | L8: 0 | M8: 0 | N8: 0 | O8: 0 | P8: 0 | Q8: 0 | R8: 0 | S8: 17 | T8: 0 | U8: 25.824 | V8: 15.4944
A9: VDF Beaujolais, L’épaisseur du moment présent, Romain des Grottes | B9: 2017 | C9: Gamay | D9: BIO | E9: NATURE | F9: X | G9: 6.8 | H9: =_xlfn.IFS(G9<5,4,G9<6.5,3.75,G9<8,3.5,G9<10,3.25,G9<12,3,G9<15,2.85,G9<20,2.8,G9<50,2.65) -> 3.5 | I9: 28.56 | J9: x | K9: TRUE | L9: 1 | M9: 1 | N9: 0 | O9: 0 | P9: 0 | Q9: 1 | R9: 0 | S9: 18 | T9: 0 | U9: =$G9*1.2*2 -> 16.32 | V9: 9.792
S10: =SUM(S3:S9) -> 36 | T10: =SUM(T3:T9) -> 48
I12: TOTAL VINS | J12: TOTAL RUPTURES
I13: =(ROWS(VINSBEAUJ))-J13 -> 5 | J13: =COUNTIF(VINSBEAUJ,"VRAI") -> 2
I14: BIO | J14: BIO
I15: =COUNTIF(AGRIBEAUJ,"BIO")-J15 -> 3 | J15: =SUM(RBIOBEAUJ) -> 2
I16: NATURE | J16: NATURE
I17: =COUNTIF(AGRIBEAUJ,"NATURE")-J17 -> 3 | J17: =SUM(RNATUREBEAUJ) -> 1
I18: CONVENTIONNEL | J18: CONVENTIONNEL
I19: =COUNTIF(AGRIBEAUJ,"CON")-J19 -> 0 | J19: =SUM(RCONBEAUJ) -> 0
I20: BIODYNAMIE | J20: BIODYNAMIE
I21: =COUNTIF(AGRIBEAUJ,"BIODY")-J21 -> 0 | J21: =SUM(RBIODYBEAUJ) -> 0
I22: ENTREE DE GAMME | J22: ENTREE DE GAMME
I23: =COUNTIFS(PVTTCBEAUJ,"<26")-J23 -> 1 | J23: =SUM(REGBEA) -> 1
I24: MILIEU DE GAMME | J24: MILIEU DE GAMME
I25: =SUMPRODUCT((PVTTCBEAUJ>25.99)*(PVTTCBEAUJ<37))-J25 -> 2 | J25: =SUM(RMGBEA) -> 1
I26: HAUT DE GAMME | J26: HAUT DE GAMME
I27: =COUNTIFS(PVTTCBEAUJ,">36,99")-J27 -> 2 | J27: =SUM(RHGBEA) -> 0

Sheet Languedoc
B1: Millésime | C1: Cépages | D1: Agriculture | F1: Fournisseurs | G1: PAHT | H1: Coeff supposé | I1: PVTTC Supposé | J1: Rupture (X) | L1: BIO | M1: NATURE | N1: CON | O1: BIODY | P1: EG | Q1: MG | R1: HG | S1: INV | T1: COM | U1: PVEMP | V1: PVGROS
A3: IGP Pays d’Hérault, Étincelle, Domaine de La Clapière | B3: 2016 | C3: Syrah | D3: CON | F3: ? | G3: 15 | H3: =_xlfn.IFS(G3<5,4,G3<6.5,3.75,G3<8,3.5,G3<10,3.25,G3<12,3,G3<15,2.85,G3<20,2.8,G3<50,2.65) -> 2.8 | I3: =G3*1.2*H3 -> 50.4 | K3: =IF(J3="X",(TRUE),(FALSE)) -> FALSE | L3: =IF(AND(OR($D3="BIO",$E3="BIO"),$K3=TRUE),1,0) -> 0 | M3: =IF(AND(OR($D3="NATURE",$E3="NATURE"),$K3=TRUE),1,0) -> 0 | N3: =IF(AND(OR($D3="CON",$E3="CON"),$K3=TRUE),1,0) -> 0 | O3: =IF(AND(OR($D3="BIODY",$E3="BIODY"),$K3=TRUE),1,0) -> 0 | P3: =IF(AND($I3<26,$K3=TRUE),1,0) -> 0 | Q3: =IF(AND((I3>25.99)*(I3<37),$K3=TRUE),1,0) -> 0 | R3: =IF(AND(36.99<$I3,$K3=TRUE),1,0) -> 0 | S3: 1 | T3: 0 | U3: =$G3*1.2*2 -> 36 | V3: =$G3*1.2*1.2 -> 21.6
A4: AOC Pic Saint-Loup, Les Calades, Domaine Foulaquier | B4: 2019 | C4: 80%Syrah, 20%Grenache | D4: BIODY | F4: Aymeric Vignapart 0670827124 | G4: 14.95 | H4: =_xlfn.IFS(G4<5,4,G4<6.5,3.75,G4<8,3.5,G4<10,3.25,G4<12,3,G4<15,2.85,G4<20,2.8,G4<50,2.65) -> 2.85 | I4: 51.129 | K4: FALSE | L4: 0 | M4: 0 | N4: 0 | O4: 0 | P4: 0 | Q4: 0 | R4: 0 | T4: 6 | U4: =$G4*1.2*2 -> 35.88 | V4: =$G4*1.2*1.2 -> 21.528
A5: VDF Le Zulu, Château Maris | B5: 2018 | C5: Grenache, Syrah | D5: BIO | F5: Biaggio Vinom 0778720063 | G5: 6.3 | H5: =_xlfn.IFS(G5<5,4,G5<6.5,3.75,G5<8,3.5,G5<10,3.25,G5<12,3,G5<15,2.85,G5<20,2.8,G5<50,2.65) -> 3.75 | I5: 28.35 | J5: x | K5: TRUE | L5: 1 | M5: 0 | N5: 0 | O5: 0 | P5: 0 | Q5: 1 | R5: 0 | T5: 0 | U5: 15.12 | V5: 9.072
A6: AOP Côtes du Roussillon, Le Petit Pas, Mas Janeil | B6: 2017 | C6: 55%Grenache, 22%Syrah, 18%Carignan, 5%Mourvèdre | D6: BIO | F6: Biaggio Vinom 0778720063 | G6: 6.55 | H6: =_xlfn.IFS(G6<5,4,G6<6.5,3.75,G6<8,3.5,G6<10,3.25,G6<12,3,G6<15,2.85,G6<20,2.8,G6<50,2.65) -> 3.5 | I6: 27.51 | J6: x | K6: TRUE | L6: 1 | M6: 0 | N6: 0 | O6: 0 | P6: 0 | Q6: 1 | R6: 0 | T6: 0 | U6: 15.72 | V6: 9.432
A7: IGP Gard, La Douzième, Aubaï Mema | B7: 2014 | C7: 95%Syrah, 5%Viognier | D7: BIO | F7: Biaggio Vinom 0778720063 | G7: 9.9 | H7: =_xlfn.IFS(G7<5,4,G7<6.5,3.75,G7<8,3.5,G7<10,3.25,G7<12,3,G7<15,2.85,G7<20,2.8,G7<50,2.65) -> 3.25 | I7: 38.61 | K7: FALSE | L7: 0 | M7: 0 | N7: 0 | O7: 0 | P7: 0 | Q7: 0 | R7: 0 | S7: 5 | T7: 0 | U7: 23.76 | V7: 14.256
A8: AOP Côtes du Roussillon-Villages, Mas d’en Janeil, François Lurton | B8: 2016 | C8: 60%Grenache, 20%Carignan, 10%Syrah, 10%Mourvèdre | D8: CON | F8: Biaggio Vinom 0778720063 | G8: 11.5 | H8: =_xlfn.IFS(G8<5,4,G8<6.5,3.75,G8<8,3.5,G8<10,3.25,G8<12,3,G8<15,2.85,G8<20,2.8,G8<50,2.65) -> 3 | I8: 41.4 | K8: FALSE | L8: 0 | M8: 0 | N8: 0 | O8: 0 | P8: 0 | Q8: 0 | R8: 0 | S8: 16 | T8: 0 | U8: 27.6 | V8: 16.56
A9: AOP Fitou, Cuvée des ardoises, Château des Erles | B9: 2017 | C9: 40%Syrah, 35%Grenache noir, 25%Carignan | D9: CON | F9: Biaggio Vinom 0778720063 | G9: 11.9 | H9: =_xlfn.IFS(G9<5,4,G9<6.5,3.75,G9<8,3.5,G9<10,3.25,G9<12,3,G9<15,2.85,G9<20,2.8,G9<50,2.65) -> 3 | I9: 42.84 | K9: FALSE | L9: 0 | M9: 0 | N9: 0 | O9: 0 | P9: 0 | Q9: 0 | R9: 0 | S9: 1 | T9: 0 | U9: 28.56 | V9: 17.136
A10: IGP Côtes du Brian, Bergerie, Domaine de Cantaussel | B10: 2018 | C10: Grenache, Carignan, Syrah | D10: BIO | F10: Cédric Schiltz 0612108579 | G10: 6.8 | H10: =_xlfn.IFS(G10<5,4,G10<6.5,3.75,G10<8,3.5,G10<10,3.25,G10<12,3,G10<15,2.85,G10<20,2.8,G10<50,2.65) -> 3.5 | I10: 28.56 | K10: FALSE | L10: 0 | M10: 0 | N10: 0 | O10: 0 | P10: 0 | Q10: 0 | R10: 0 | S10: 16 | T10: 0 | U10: 16.32 | V10: 9.792
A11: AOC Minervois, Estelum, Domaine de Cantaussel | B11: 2014 | C11: Carignan, Syrah, Grenache | D11: BIO | F11: Cédric Schiltz 0612108579 | G11: 9 | H11: =_xlfn.IFS(G11<5,4,G11<6.5,3.75,G11<8,3.5,G11<10,3.25,G11<12,3,G11<15,2.85,G11<20,2.8,G11<50,2.65) -> 3.25 | I11: 35.1 | K11: FALSE | L11: 0 | M11: 0 | N11: 0 | O11: 0 | P11: 0 | Q11: 0 | R11: 0 | S11: 1 | T11: 0 | U11: 21.6 | V11: 12.96
A12: AOC Minervois, Le vin de plume, Domaine du Somail | B12: 2018 | C12: Mourvèdre, Syrah | D12: BIODY | F12: Didier Bordas 0660995478 | G12: 7.4 | H12: =_xlfn.IFS(G12<5,4,G12<6.5,3.75,G12<8,3.5,G12<10,3.25,G12<12,3,G12<15,2.85,G12<20,2.8,G12<50,2.65) -> 3.5 | I12: 31.08 | K12: FALSE | L12: 0 | M12: 0 | N12: 0 | O12: 0 | P12: 0 | Q12: 0 | R12: 0 | T12: 6 | U12: 17.76 | V12: 10.656
A13: AOC Corbières, Sur Pilotis, Château Montfin | B13: 2018 | C13: 40% Carignan, 30%Carignan macération carbonique, 30%Grenache | D13: BIODY | F13: Didier Bordas 0660995478 | G13: 7.13 | H13: =_xlfn.IFS(G13<5,4,G13<6.5,3.75,G13<8,3.5,G13<10,3.25,G13<12,3,G13<15,2.85,G13<20,2.8,G13<50,2.65) -> 3.5 | I13: 29.946 | K13: FALSE | L13: 0 | M13: 0 | N13: 0 | O13: 0 | P13: 0 | Q13: 0 | R13: 0 | T13: 6 | U13: 17.112 | V13: 10.2672
A14: VDF Languedoc, Vous avez Carte Blanche, Le Clos des pères | B14: 2018 | C14: Carignan | D14: NATURE | F14: Le clos des pères 0628086552 | G14: 6.5 | H14: =_xlfn.IFS(G14<5,4,G14<6.5,3.75,G14<8,3.5,G14<10,3.25,G14<12,3,G14<15,2.85,G14<20,2.8,G14<50,2.65) -> 3.5 | I14: 27.3 | K14: FALSE | L14: 0 | M14: 0 | N14: 0 | O14: 0 | P14: 0 | Q14: 0 | R14: 0 | S14: 25 | T14: 0 | U14: 15.6 | V14: 9.36
A15: AOC Minervois la Livinière, Le Rouge des vents, Le clos des pères | B15: 2017 | C15: Syrah, Grenache | D15: NATURE | F15: Le clos des pères 0628086552 | G15: 9.5 | H15: =_xlfn.IFS(G15<5,4,G15<6.5,3.75,G15<8,3.5,G15<10,3.25,G15<12,3,G15<15,2.85,G15<20,2.8,G15<50,2.65) -> 3.25 | I15: 37.05 | K15: FALSE | L15: 0 | M15: 0 | N15: 0 | O15: 0 | P15: 0 | Q15: 0 | R15: 0 | S15: 9 | T15: 0 | U15: 22.8 | V15: 13.68
A16: VDF Languedoc, Le Vire-Voltant, Les Équilibristes | B16: 2018 | C16: Carignan | D16: BIO | F16: Nicolas Jaboulet 0680320770 | G16: 9.9 | H16: =_xlfn.IFS(G16<5,4,G16<6.5,3.75,G16<8,3.5,G16<10,3.25,G16<12,3,G16<15,2.85,G16<20,2.8,G16<50,2.65) -> 3.25 | I16: 38.61 | K16: FALSE | L16: 0 | M16: 0 | N16: 0 | O16: 0 | P16: 0 | Q16: 0 | R16: 0 | S16: 18 | T16: 0 | U16: 23.76 | V16: 14.256
A17: AOP Languedoc Pézenas, Les Sept Vaillants, Les Équilibristes | B17: 2016 | C17: 60%Syrah, 20%Mourvedre, 20%Grenache | D17: BIO | F17: Nicolas Jaboulet 0680320770 | G17: 9.9 | H17: =_xlfn.IFS(G17<5,4,G17<6.5,3.75,G17<8,3.5,G17<10,3.25,G17<12,3,G17<15,2.85,G17<20,2.8,G17<50,2.65) -> 3.25 | I17: 38.61 | K17: FALSE | L17: 0 | M17: 0 | N17: 0 | O17: 0 | P17: 0 | Q17: 0 | R17: 0 | S17: 14 | T17: 0 | U17: 23.76 | V17: 14.256
A18: IGP Pays d’Hérault, Apollo 93, Yann le Bouler | B18: 2017 | C18: 70%Carignan, 30%Syrah | D18: BIO | F18: X | G18: 7.9 | H18: =_xlfn.IFS(G18<5,4,G18<6.5,3.75,G18<8,3.5,G18<10,3.25,G18<12,3,G18<15,2.85,G18<20,2.8,G18<50,2.65) -> 3.5 | I18: 33.18 | K18: FALSE | L18: 0 | M18: 0 | N18: 0 | O18: 0 | P18: 0 | Q18: 0 | R18: 0 | S18: 1 | T18: 0 | U18: 18.96 | V18: 11.376
A19: AOP Corbières, Au Village, Castelmaure | B19: 2016 | C19: 50%Carignan, 30%Grenache noir, 20%Syrah | D19: CON | F19: X | G19: 6.2 | H19: =_xlfn.IFS(G19<5,4,G19<6.5,3.75,G19<8,3.5,G19<10,3.25,G19<12,3,G19<15,2.85,G19<20,2.8,G19<50,2.65) -> 3.75 | I19: 27.9 | K19: FALSE | L19: 0 | M19: 0 | N19: 0 | O19: 0 | P19: 0 | Q19: 0 | R19: 0 | S19: 1 | T19: 0 | U19: 14.88 | V19: 8.928
A20: VDF Languedoc, Carignan, Jean Lignières | B20: 2017 | C20: Carignan | D20: BIODY | E20: NATURE | F20: X | G20: 7.95 | H20: =_xlfn.IFS(G20<5,4,G20<6.5,3.75,G20<8,3.5,G20<10,3.25,G20<12,3,G20<15,2.85,G20<20,2.8,G20<50,2.65) -> 3.5 | I20: 33.39 | K20: FALSE | L20: 0 | M20: 0 | N20: 0 | O20: 0 | P20: 0 | Q20: 0 | R20: 0 | S20: 1 | T20: 0 | U20: 19.08 | V20: 11.448
A21: AOP Corbières, L’ésprit du vent, Nouvelle vague (Magnum) | B21: 2016 | C21: 50%Carignan, 35%Grenache noir, 15%Syrah | D21: CON | F21: X | G21: 7.46 | H21: =_xlfn.IFS(G21<5,4,G21<6.5,3.75,G21<8,3.5,G21<10,3.25,G21<12,3,G21<15,2.85,G21<20,2.8,G21<50,2.65) -> 3.5 | I21: 31.332 | K21: FALSE | L21: 0 | M21: 0 | N21: 0 | O21: 0 | P21: 0 | Q21: 0 | R21: 0 | S21: 2 | T21: 0 | U21: 17.904 | V21: 10.7424
A22: AOP Corbières, La Réputation, Castelmaure | B22: 2016 | C22: 50%Syrah, 25%Carignan, 25%Grenache | D22: CON | F22: X | G22: 12 | H22: =_xlfn.IFS(G22<5,4,G22<6.5,3.75,G22<8,3.5,G22<10,3.25,G22<12,3,G22<15,2.85,G22<20,2.8,G22<50,2.65) -> 2.85 | I22: 41.04 | K22: FALSE | L22: 0 | M22: 0 | N22: 0 | O22: 0 | P22: 0 | Q22: 0 | R22: 0 | S22: 2 | T22: 0 | U22: 28.8 | V22: 17.28
S23: =SUM(S3:S22) -> 113 | T23: =SUM(T3:T22) -> 18
I25: TOTAL VINS | J25: TOTAL RUPTURES
I26: =(ROWS(VINSLANGU))-J26 -> 18 | J26: =COUNTIF(VINSLANGU,"VRAI") -> 2
I27: BIO | J27: BIO
I28: =COUNTIF(AGRILANG,"BIO")-J28 -> 6 | J28: =SUM(RBIOLANG) -> 2
I29: NATURE | J29: NATURE
I30: =COUNTIF(AGRILANG,"NATURE")-J30 -> 3 | J30: =SUM(RNATURELANG) -> 0
I31: CONVENTIONNEL | J31: CONVENTIONNEL
I32: =COUNTIF(AGRILANG,"CON")-J32 -> 6 | J32: =SUM(RCONLANG) -> 0
I33: BIODYNAMIE | J33: BIODYNAMIE
I34: =COUNTIF(AGRILANG,"BIODY")-J34 -> 4 | J34: =SUM(RBIODYLANG) -> 0
I35: ENTREE DE GAMME | J35: ENTREE DE GAMME
I36: =COUNTIFS(PVTTCLANG,"<26")-J36 -> 0 | J36: =SUM(REGLAN) -> 0
I37: MILIEU DE GAMME | J37: MILIEU DE GAMME
I38: =SUMPRODUCT((PVTTCLANG>25.99)*(PVTTCLANG<37))-J38 -> 9 | J38: =SUM(RMGLAN) -> 2
I39: HAUT DE GAMME | J39: HAUT DE GAMME
I40: =COUNTIFS(PVTTCLANG,">36,99")-J40 -> 9 | J40: =SUM(RHGLAN) -> 0

Sheet Vallée du Rhône
B1: Millésime | C1: Cépages | D1: Agriculture | F1: Fournisseurs | G1: PAHT | H1: Coeff supposé | I1: PVTTC Supposé | J1: Rupture (X) | L1: BIO | M1: NATURE | N1: CON | O1: BIODY | P1: EG | Q1: MG | R1: HG | S1: INV | T1: COM | U1: PVEMP | V1: PVGROS
A3: IGP Var, Coteaux du Verdon, Domaine de la Mongestine | B3: 2019 | C3: 60%Syrah, 40%Grenache | D3: BIO | F3: Didier Bordas 0660995478 | G3: 7.9 | H3: =_xlfn.IFS(G3<5,4,G3<6.5,3.75,G3<8,3.5,G3<10,3.25,G3<12,3,G3<15,2.85,G3<20,2.8,G3<50,2.65) -> 3.5 | I3: =G3*1.2*H3 -> 33.18 | K3: =IF(J3="X",(TRUE),(FALSE)) -> FALSE | L3: =IF(AND(OR($D3="BIO",$E3="BIO"),$K3=TRUE),1,0) -> 0 | M3: =IF(AND(OR($D3="NATURE",$E3="NATURE"),$K3=TRUE),1,0) -> 0 | N3: =IF(AND(OR($D3="CON",$E3="CON"),$K3=TRUE),1,0) -> 0 | O3: =IF(AND(OR($D3="BIODY",$E3="BIODY"),$K3=TRUE),1,0) -> 0 | P3: =IF(AND($I3<26,$K3=TRUE),1,0) -> 0 | Q3: =IF(AND((I3>25.99)*(I3<37),$K3=TRUE),1,0) -> 0 | R3: =IF(AND(36.99<$I3,$K3=TRUE),1,0) -> 0 | S3: 9 | T3: 0 | U3: =$G3*1.2*2 -> 18.96 | V3: =$G3*1.2*1.2 -> 11.376
A4: AOC Côtes du Rhône, Domaine du Séminaire | B4: 2020 | C4: Grenache, Syrah, Carignan | D4: BIO | F4: Didier Bordas 0660995478 | G4: 5.14 | H4: =_xlfn.IFS(G4<5,4,G4<6.5,3.75,G4<8,3.5,G4<10,3.25,G4<12,3,G4<15,2.85,G4<20,2.8,G4<50,2.65) -> 3.75 | I4: 23.13 | J4: x | K4: TRUE | L4: 1 | M4: 0 | N4: 0 | O4: 0 | P4: 1 | Q4: 0 | R4: 0 | T4: 18 | U4: =$G4*1.2*2 -> 12.336 | V4: =$G4*1.2*1.2 -> 7.4016
A5: AOC Grignan-les-Adhémar, Héritage, Bonetto-Fabrol | B5: 2018 | C5: Syrah | D5: BIO | F5: Franck 0651826004 | G5: 7 | H5: =_xlfn.IFS(G5<5,4,G5<6.5,3.75,G5<8,3.5,G5<10,3.25,G5<12,3,G5<15,2.85,G5<20,2.8,G5<50,2.65) -> 3.5 | I5: 29.4 | K5: FALSE | L5: 0 | M5: 0 | N5: 0 | O5: 0 | P5: 0 | Q5: 0 | R5: 0 | S5: 8 | T5: 0 | U5: 16.8 | V5: 10.08
A6: AOC Costières de Nîmes, Château de Valcombe | B6: 2018 | C6: Syrah, Grenache | D6: CON | F6: Franck 0651826004 | G6: 5.15 | H6: =_xlfn.IFS(G6<5,4,G6<6.5,3.75,G6<8,3.5,G6<10,3.25,G6<12,3,G6<15,2.85,G6<20,2.8,G6<50,2.65) -> 3.75 | I6: 23.175 | K6: FALSE | L6: 0 | M6: 0 | N6: 0 | O6: 0 | P6: 0 | Q6: 0 | R6: 0 | S6: 1 | T6: 0 | U6: 12.36 | V6: 7.416
A7: AOC Côtes du Rhône Villages, Terra Vitae, Laudun | B7: 2019 | C7: 70%Grenache, 30%Syrah | D7: BIO | F7: Phillippe Potier 0680136645 | G7: 6.81 | H7: =_xlfn.IFS(G7<5,4,G7<6.5,3.75,G7<8,3.5,G7<10,3.25,G7<12,3,G7<15,2.85,G7<20,2.8,G7<50,2.65) -> 3.5 | I7: 28.602 | J7: x | K7: TRUE | L7: 1 | M7: 0 | N7: 0 | O7: 0 | P7: 0 | Q7: 1 | R7: 0 | T7: 0 | U7: 16.344 | V7: 9.8064
A8: AOC Côtes du Rhône, Enfant Terrible, Laudun Chusclan | B8: 2019 | C8: Grenache, Carignan, Syrah, Mourvèdre, Cinsault | D8: Nature | F8: Phillippe Potier 0680136645 | G8: 5.2 | H8: =_xlfn.IFS(G8<5,4,G8<6.5,3.75,G8<8,3.5,G8<10,3.25,G8<12,3,G8<15,2.85,G8<20,2.8,G8<50,2.65) -> 3.75 | I8: 23.4 | J8: x | K8: TRUE | L8: 0 | M8: 1 | N8: 0 | O8: 0 | P8: 1 | Q8: 0 | R8: 0 | T8: 0 | U8: 12.48 | V8: 7.488
A9: AOC Cornas, Cave de Tain | B9: 2017 | C9: Syrah | D9: BIO | F9: Phillippe Potier 0680136645 | G9: 20.65 | H9: =_xlfn.IFS(G9<5,4,G9<6.5,3.75,G9<8,3.5,G9<10,3.25,G9<12,3,G9<15,2.85,G9<20,2.8,G9<50,2.65) -> 2.65 | I9: 65.667 | K9: FALSE | L9: 0 | M9: 0 | N9: 0 | O9: 0 | P9: 0 | Q9: 0 | R9: 0 | T9: 6 | U9: 49.56 | V9: 29.736
A10: AOC Saint-Joseph, Cave de Tain | B10: 2019 | C10: Syrah | D10: BIO | F10: Phillippe Potier 0680136645 | G10: 12.6 | H10: =_xlfn.IFS(G10<5,4,G10<6.5,3.75,G10<8,3.5,G10<10,3.25,G10<12,3,G10<15,2.85,G10<20,2.8,G10<50,2.65) -> 2.85 | I10: 43.092 | K10: FALSE | L10: 0 | M10: 0 | N10: 0 | O10: 0 | P10: 0 | Q10: 0 | R10: 0 | T10: 12 | U10: 30.24 | V10: 18.144
A11: AOC Crozes Hermitage, Cave de Tain | B11: 2019 | C11: Syrah | D11: BIO | F11: Phillippe Potier 0680136645 | G11: 8.8 | H11: =_xlfn.IFS(G11<5,4,G11<6.5,3.75,G11<8,3.5,G11<10,3.25,G11<12,3,G11<15,2.85,G11<20,2.8,G11<50,2.65) -> 3.25 | I11: 34.32 | K11: FALSE | L11: 0 | M11: 0 | N11: 0 | O11: 0 | P11: 0 | Q11: 0 | R11: 0 | T11: 18 | U11: 21.12 | V11: 12.672
A12: AOC Côtes du Rhône-Villages, Villa Volitnia, Chusclan | B12: 2016 | C12: Syrah, Grenache | D12: CON | F12: Phillippe Potier 0680136645 | G12: 15.85 | H12: =_xlfn.IFS(G12<5,4,G12<6.5,3.75,G12<8,3.5,G12<10,3.25,G12<12,3,G12<15,2.85,G12<20,2.8,G12<50,2.65) -> 2.8 | I12: 53.256 | K12: FALSE | L12: 0 | M12: 0 | N12: 0 | O12: 0 | P12: 0 | Q12: 0 | R12: 0 | S12: 9 | T12: 0 | U12: 38.04 | V12: 22.824
S13: =SUM(S3:S12) -> 27 | T13: =SUM(T3:T12) -> 54
I15: TOTAL VINS | J15: TOTAL RUPTURES
I16: =(ROWS(VINSRHON))-J16 -> 7 | J16: =COUNTIF(VINSRHON,"VRAI") -> 3
I17: BIO | J17: BIO
I18: =COUNTIF(AGRIVDR,"BIO")-J18 -> 5 | J18: =SUM(RBIOVDR) -> 2
I19: NATURE | J19: NATURE
I20: =COUNTIF(AGRIVDR,"NATURE")-J20 -> 0 | J20: =SUM(RNATUREVDR) -> 1
I21: CONVENTIONNEL | J21: CONVENTIONNEL
I22: =COUNTIF(AGRIVDR,"CON")-J22 -> 2 | J22: =SUM(RCONVDR) -> 0
I23: BIODYNAMIE | J23: BIODYNAMIE
I24: =COUNTIF(AGRIVDR,"BIODY")-J24 -> 0 | J24: =SUM(RBIODYVDR) -> 0
I25: ENTREE DE GAMME | J25: ENTREE DE GAMME
I26: =COUNTIFS(PVTTCVDR,"<26")-J26 -> 1 | J26: =SUM(REGVDR) -> 2
I27: MILIEU DE GAMME | J27: MILIEU DE GAMME
I28: =SUMPRODUCT((PVTTCVDR>25.99)*(PVTTCVDR<37))-J28 -> 3 | J28: =SUM(RMGVDR) -> 1
I29: HAUT DE GAMME | J29: HAUT DE GAMME
I30: =COUNTIFS(PVTTCVDR,">36,99")-J30 -> 3 | J30: =SUM(RHGVDR) -> 0

Sheet Vallée de la Loire
B1: Millésime | C1: Cépages | D1: Agriculture | F1: Fournisseurs | G1: PAHT | H1: Coeff supposé | I1: PVTTC Supposé | J1: Rupture (X) | L1: BIO | M1: NATURE | N1: CON | O1: BIODY | P1: EG | Q1: MG | R1: HG | S1: INV | T1: COM | U1: PVEMP | V1: PVGROS
A3: VDF Loire, La Friponne, Pierre Chauvin | B3: 2018 | C3: Grolleau noir | D3: BIO | F3: Aymeric Vignapart 0670827124 | G3: 6.9 | H3: =_xlfn.IFS(G3<5,4,G3<6.5,3.75,G3<8,3.5,G3<10,3.25,G3<12,3,G3<15,2.85,G3<20,2.8,G3<50,2.65) -> 3.5 | I3: =G3*1.2*H3 -> 28.98 | K3: =IF(J3="X",(TRUE),(FALSE)) -> FALSE | L3: =IF(AND(OR($D3="BIO",$E3="BIO"),$K3=TRUE),1,0) -> 0 | M3: =IF(AND(OR($D3="NATURE",$E3="NATURE"),$K3=TRUE),1,0) -> 0 | N3: =IF(AND(OR($D3="CON",$E3="CON"),$K3=TRUE),1,0) -> 0 | O3: =IF(AND(OR($D3="BIODY",$E3="BIODY"),$K3=TRUE),1,0) -> 0 | P3: =IF(AND($I3<26,$K3=TRUE),1,0) -> 0 | Q3: =IF(AND((I3>25.99)*(I3<37),$K3=TRUE),1,0) -> 0 | R3: =IF(AND(36.99<$I3,$K3=TRUE),1,0) -> 0 | S3: 14 | T3: 0 | U3: =$G3*1.2*2 -> 16.56 | V3: =$G3*1.2*1.2 -> 9.936
A4: AOC Sancerre, Domaine Serge Laloue | B4: 2018 | C4: Pinot noir | D4: CON | F4: Biaggio Vinom 0778720063 | G4: 10.5 | H4: =_xlfn.IFS(G4<5,4,G4<6.5,3.75,G4<8,3.5,G4<10,3.25,G4<12,3,G4<15,2.85,G4<20,2.8,G4<50,2.65) -> 3 | I4: 37.8 | K4: FALSE | L4: 0 | M4: 0 | N4: 0 | O4: 0 | P4: 0 | Q4: 0 | R4: 0 | S4: 1 | T4: 6 | U4: =$G4*1.2*2 -> 25.2 | V4: =$G4*1.2*1.2 -> 15.12
A5: AOC Cheverny, Domaine de Montcy | B5: 2018 | C5: Pinot noir, Gamay, Côt | D5: BIO | F5: Biaggio Vinom 0778720063 | G5: 7.75 | H5: =_xlfn.IFS(G5<5,4,G5<6.5,3.75,G5<8,3.5,G5<10,3.25,G5<12,3,G5<15,2.85,G5<20,2.8,G5<50,2.65) -> 3.5 | I5: 32.55 | K5: FALSE | L5: 0 | M5: 0 | N5: 0 | O5: 0 | P5: 0 | Q5: 0 | R5: 0 | S5: 2 | T5: 6 | U5: 18.6 | V5: 11.16
A6: VDF, L'enfant rebelle, Antoine de la Farge | B6: 2019 | C6: Pinot noir | D6: CON | F6: Didier Bordas 0660995478 | G6: 6.15 | H6: =_xlfn.IFS(G6<5,4,G6<6.5,3.75,G6<8,3.5,G6<10,3.25,G6<12,3,G6<15,2.85,G6<20,2.8,G6<50,2.65) -> 3.75 | I6: 27.675 | J6: x | K6: TRUE | L6: 0 | M6: 0 | N6: 1 | O6: 0 | P6: 0 | Q6: 1 | R6: 0 | T6: 0 | U6: 14.76 | V6: 8.856
A7: AOP Chinon, Les Gallières, Domaine Jourdan | B7: 2018 | C7: Cabernet Franc | D7: BIODY | F7: Didier Bordas 0660995478 | G7: 7.67 | H7: =_xlfn.IFS(G7<5,4,G7<6.5,3.75,G7<8,3.5,G7<10,3.25,G7<12,3,G7<15,2.85,G7<20,2.8,G7<50,2.65) -> 3.5 | I7: 32.214 | K7: FALSE | L7: 0 | M7: 0 | N7: 0 | O7: 0 | P7: 0 | Q7: 0 | R7: 0 | T7: 12 | U7: 18.408 | V7: 11.0448
A8: IGP Vin de Vendée, Bel Canto, Domaine Prieuré La Chaume | B8: 2018 | C8: Merlot | D8: BIODY | F8: Didier Bordas 0660995478 | G8: 11.64 | H8: =_xlfn.IFS(G8<5,4,G8<6.5,3.75,G8<8,3.5,G8<10,3.25,G8<12,3,G8<15,2.85,G8<20,2.8,G8<50,2.65) -> 3 | I8: 41.904 | K8: FALSE | L8: 0 | M8: 0 | N8: 0 | O8: 0 | P8: 0 | Q8: 0 | R8: 0 | T8: 6 | U8: 27.936 | V8: 16.7616
A9: AOC Saumur Champigny, Château de Chaintres, Vieilles vignes | B9: 2018 | C9: Cabernet franc | D9: BIO | F9: Didier Bordas 0660995478 | G9: 10.4 | H9: =_xlfn.IFS(G9<5,4,G9<6.5,3.75,G9<8,3.5,G9<10,3.25,G9<12,3,G9<15,2.85,G9<20,2.8,G9<50,2.65) -> 3 | I9: 37.44 | K9: FALSE | L9: 0 | M9: 0 | N9: 0 | O9: 0 | P9: 0 | Q9: 0 | R9: 0 | S9: 3 | T9: 0 | U9: 24.96 | V9: 14.976
A10: AOP Saumur Champigny, Les Cinq, Famille Daheuiller | B10: 2014 | C10: Cabernet Franc | D10: BIO | F10: Franck 0651826004 | G10: 7 | H10: =_xlfn.IFS(G10<5,4,G10<6.5,3.75,G10<8,3.5,G10<10,3.25,G10<12,3,G10<15,2.85,G10<20,2.8,G10<50,2.65) -> 3.5 | I10: 29.4 | K10: FALSE | L10: 0 | M10: 0 | N10: 0 | O10: 0 | P10: 0 | Q10: 0 | R10: 0 | S10: 3 | T10: 0 | U10: 16.8 | V10: 10.08
A11: VDF Loire, Le Joufflu, Les Équilibristes | B11: 2018 | C11: 90%Grolleau noir, 10%Pineau D’Aunis | D11: CON | F11: Nicolas Jaboulet 0680320770 | G11: 7.9 | H11: =_xlfn.IFS(G11<5,4,G11<6.5,3.75,G11<8,3.5,G11<10,3.25,G11<12,3,G11<15,2.85,G11<20,2.8,G11<50,2.65) -> 3.5 | I11: 33.18 | K11: FALSE | L11: 0 | M11: 0 | N11: 0 | O11: 0 | P11: 0 | Q11: 0 | R11: 0 | S11: 5 | T11: 12 | U11: 18.96 | V11: 11.376
S12: =SUM(S3:S11) -> 28 | T12: =SUM(T3:T11) -> 42
I14: TOTAL VINS | J14: TOTAL RUPTURES
I15: =(ROWS(VINSLOIR))-J15 -> 8 | J15: =COUNTIF(VINSLOIR,"VRAI") -> 1
I16: BIO | J16: BIO
I17: =COUNTIF(AGRIVDL,"BIO")-J17 -> 4 | J17: =SUM(RBIOVDL) -> 0
I18: NATURE | J18: NATURE
I19: =COUNTIF(AGRIVDL,"NATURE")-J19 -> 0 | J19: =SUM(RNATUREVDL) -> 0
I20: CONVENTIONNEL | J20: CONVENTIONNEL
I21: =COUNTIF(AGRIVDL,"CON")-J21 -> 2 | J21: =SUM(RCONVDL) -> 1
I22: BIODYNAMIE | J22: BIODYNAMIE
I23: =COUNTIF(AGRIVDL,"BIODY")-J23 -> 2 | J23: =SUM(RBIODYVDL) -> 0
I24: ENTREE DE GAMME | J24: ENTREE DE GAMME
I25: =COUNTIFS(PVTTCVDL,"<26")-J25 -> 0 | J25: =SUM(REGVDL) -> 0
I26: MILIEU DE GAMME | J26: MILIEU DE GAMME
I27: =SUMPRODUCT((PVTTCVDL>25.99)*(PVTTCVDL<37))-J27 -> 5 | J27: =SUM(RMGVDL) -> 1
I28: HAUT DE GAMME | J28: HAUT DE GAMME
I29: =COUNTIFS(PVTTCVDL,">36,99")-J29 -> 3 | J29: =SUM(RHGVDL) -> 0

Sheet Etrangers
B1: Millésime | C1: Cépages | D1: Agriculture | F1: Fournisseurs | G1: PAHT | H1: Coeff supposé | I1: PVTTC Supposé | J1: Rupture (X) | L1: BIO | M1: NATURE | N1: CON | O1: BIODY | P1: EG | Q1: MG | R1: HG | S1: INV | T1: COM | U1: PVEMP | V1: PVGROS
A3: DOC Alella, Merla, Celler de les Aus | B3: 2017 | C3: Monastrell | D3: BIO | E3: NATURE | F3: ? | G3: 11.9 | H3: =_xlfn.IFS(G3<5,4,G3<6.5,3.75,G3<8,3.5,G3<10,3.25,G3<12,3,G3<15,2.85,G3<20,2.8,G3<50,2.65) -> 3 | I3: =G3*1.2*H3 -> 42.84 | K3: =IF(J3="X",(TRUE),(FALSE)) -> FALSE | L3: =IF(AND(OR($D3="BIO",$E3="BIO"),$K3=TRUE),1,0) -> 0 | M3: =IF(AND(OR($D3="NATURE",$E3="NATURE"),$K3=TRUE),1,0) -> 0 | N3: =IF(AND(OR($D3="CON",$E3="CON"),$K3=TRUE),1,0) -> 0 | O3: =IF(AND(OR($D3="BIODY",$E3="BIODY"),$K3=TRUE),1,0) -> 0 | P3: =IF(AND($I3<26,$K3=TRUE),1,0) -> 0 | Q3: =IF(AND((I3>25.99)*(I3<37),$K3=TRUE),1,0) -> 0 | R3: =IF(AND(36.99<$I3,$K3=TRUE),1,0) -> 0 | S3: 1 | T3: 0 | U3: =$G3*1.2*2 -> 28.56 | V3: =$G3*1.2*1.2 -> 17.136
A4: DOC Rosso di Montepulciano, Azienda Casale | B4: 2016 | C4: 85%Sangiovese, 10%Canaiolo Nero, 5%Mammolo | D4: CON | F4: Axel Gustoworld 0625338003 | G4: 6.95 | H4: =_xlfn.IFS(G4<5,4,G4<6.5,3.75,G4<8,3.5,G4<10,3.25,G4<12,3,G4<15,2.85,G4<20,2.8,G4<50,2.65) -> 3.5 | I4: 29.19 | K4: FALSE | L4: 0 | M4: 0 | N4: 0 | O4: 0 | P4: 0 | Q4: 0 | R4: 0 | S4: 2 | T4: 0 | U4: =$G4*1.2*2 -> 16.68 | V4: =$G4*1.2*1.2 -> 10.008
A5: IGP Salina Rosso, Hauner, Hauner Carlo | B5: 2017 | C5: 60%Nero d’avola, 40%Nerello mascalese | D5: CON | F5: Axel Gustoworld 0625338003 | G5: 11.91 | H5: =_xlfn.IFS(G5<5,4,G5<6.5,3.75,G5<8,3.5,G5<10,3.25,G5<12,3,G5<15,2.85,G5<20,2.8,G5<50,2.65) -> 3 | I5: 42.876 | K5: FALSE | L5: 0 | M5: 0 | N5: 0 | O5: 0 | P5: 0 | Q5: 0 | R5: 0 | S5: 5 | T5: 0 | U5: 28.584 | V5: 17.1504
A6: IGP Negroamaro Salento, Lifili, A6mani | B6: 2019 | C6: Negroamaro | D6: CON | F6: Axel Gustoworld 0625338003 | G6: 6.95 | H6: =_xlfn.IFS(G6<5,4,G6<6.5,3.75,G6<8,3.5,G6<10,3.25,G6<12,3,G6<15,2.85,G6<20,2.8,G6<50,2.65) -> 3.5 | I6: 29.19 | K6: FALSE | L6: 0 | M6: 0 | N6: 0 | O6: 0 | P6: 0 | Q6: 0 | R6: 0 | S6: 32 | T6: 0 | U6: 16.68 | V6: 10.008
A7: IGP Terre Siciliane, Omnis, Funaro | B7: 2016 | C7: Nero d’avola | D7: BIO | F7: Axel Gustoworld 0625338003 | G7: 13.7 | H7: =_xlfn.IFS(G7<5,4,G7<6.5,3.75,G7<8,3.5,G7<10,3.25,G7<12,3,G7<15,2.85,G7<20,2.8,G7<50,2.65) -> 2.85 | I7: 46.854 | K7: FALSE | L7: 0 | M7: 0 | N7: 0 | O7: 0 | P7: 0 | Q7: 0 | R7: 0 | S7: 3 | T7: 0 | U7: 32.88 | V7: 19.728
A8: VT Valdejalón, Botijo Rojo | B8: 2018 | C8: Grenache noir | D8: CON | F8: Axel Gustoworld 0625338003 | G8: 6.73 | H8: =_xlfn.IFS(G8<5,4,G8<6.5,3.75,G8<8,3.5,G8<10,3.25,G8<12,3,G8<15,2.85,G8<20,2.8,G8<50,2.65) -> 3.5 | I8: 28.266 | K8: FALSE | L8: 0 | M8: 0 | N8: 0 | O8: 0 | P8: 0 | Q8: 0 | R8: 0 | S8: 11 | T8: 0 | U8: 16.152 | V8: 9.6912
A9: DOC Sicilia, Nero d’Avola, Funaro | B9: 2019 | C9: Nero d’Avola | D9: BIO | F9: Axel Gustoworld 0625338003 | G9: 7.84 | H9: =_xlfn.IFS(G9<5,4,G9<6.5,3.75,G9<8,3.5,G9<10,3.25,G9<12,3,G9<15,2.85,G9<20,2.8,G9<50,2.65) -> 3.5 | I9: 32.928 | K9: FALSE | L9: 0 | M9: 0 | N9: 0 | O9: 0 | P9: 0 | Q9: 0 | R9: 0 | S9: 4 | T9: 0 | U9: 18.816 | V9: 11.2896
A10: Alla Costiera | B10: 2017 | C10: Cabernet Sauvignon, Merlot | D10: BIO | E10: NATURE | F10: X | G10: 5.5 | H10: =_xlfn.IFS(G10<5,4,G10<6.5,3.75,G10<8,3.5,G10<10,3.25,G10<12,3,G10<15,2.85,G10<20,2.8,G10<50,2.65) -> 3.75 | I10: 24.75 | K10: FALSE | L10: 0 | M10: 0 | N10: 0 | O10: 0 | P10: 0 | Q10: 0 | R10: 0 | S10: 6 | T10: 0 | U10: 13.2 | V10: 7.92
S11: =SUM(S3:S10) -> 64 | T11: =SUM(T3:T10) -> 0
I13: TOTAL VINS | J13: TOTAL RUPTURES
I14: =(ROWS(VINSETR))-J14 -> 8 | J14: =COUNTIF(VINSETR,"VRAI") -> 0
I15: BIO | J15: BIO
I16: =COUNTIF(AGRIETR,"BIO")-J16 -> 4 | J16: =SUM(RBIOETR) -> 0
I17: NATURE | J17: NATURE
I18: =COUNTIF(AGRIETR,"NATURE")-J18 -> 2 | J18: =SUM(RNATUREETR) -> 0
I19: CONVENTIONNEL | J19: CONVENTIONNEL
I20: =COUNTIF(AGRIETR,"CON")-J20 -> 4 | J20: =SUM(RCONETR) -> 0
I21: BIODYNAMIE | J21: BIODYNAMIE
I22: =COUNTIF(AGRIETR,"BIODY")-J22 -> 0 | J22: =SUM(RBIODYETR) -> 0
I23: ENTREE DE GAMME | J23: ENTREE DE GAMME
I24: =COUNTIFS(PVTTCETR,"<26")-J24 -> 1 | J24: =SUM(REGETR) -> 0
I25: MILIEU DE GAMME | J25: MILIEU DE GAMME
I26: =SUMPRODUCT((PVTTCETR>25.99)*(PVTTCETR<37))-J26 -> 4 | J26: =SUM(RMGETR) -> 0
I27: HAUT DE GAMME | J27: HAUT DE GAMME
I28: =COUNTIFS(PVTTCETR,">36,99")-J28 -> 3 | J28: =SUM(RHGETR) -> 0

Sheet Champagne
B1: Millésime | C1: Cépages | D1: Agriculture | F1: Fournisseurs | G1: PAHT | H1: Coeff supposé | I1: PVTTC Supposé | J1: Rupture (X) | L1: BIO | M1: NATURE | N1: CON | O1: BIODY | P1: EG | Q1: MG | R1: HG | S1: INV | T1: COM | U1: PVEMP | V1: PVGROS
A3: Champagne Gautherot, Brut, Grande réserve | D3: CON | F3: Gautherot 0325385003 | G3: 16.8 | H3: =_xlfn.IFS(G3<5,4,G3<6.5,3.75,G3<8,3.5,G3<10,3.25,G3<12,3,G3<15,2.85,G3<20,2.8,G3<50,2.65) -> 2.8 | I3: =G3*1.2*H3 -> 56.448 | K3: =IF(J3="X",(TRUE),(FALSE)) -> FALSE | L3: =IF(AND(OR($D3="BIO",$E3="BIO"),$K3=TRUE),1,0) -> 0 | M3: =IF(AND(OR($D3="NATURE",$E3="NATURE"),$K3=TRUE),1,0) -> 0 | N3: =IF(AND(OR($D3="CON",$E3="CON"),$K3=TRUE),1,0) -> 0 | O3: =IF(AND(OR($D3="BIODY",$E3="BIODY"),$K3=TRUE),1,0) -> 0 | P3: =IF(AND($I3<26,$K3=TRUE),1,0) -> 0 | Q3: =IF(AND((I3>25.99)*(I3<37),$K3=TRUE),1,0) -> 0 | R3: =IF(AND(36.99<$I3,$K3=TRUE),1,0) -> 0 | S3: 40 | T3: 0 | U3: =$G3*1.2*2 -> 40.32 | V3: =$G3*1.2*1.2 -> 24.192
A4: Champagne Gautherot rosé | D4: CON | F4: Gautherot 0325385003 | G4: 16.8 | H4: =_xlfn.IFS(G4<5,4,G4<6.5,3.75,G4<8,3.5,G4<10,3.25,G4<12,3,G4<15,2.85,G4<20,2.8,G4<50,2.65) -> 2.8 | I4: =G4*1.2*H4 -> 56.448 | K4: =IF(J4="X",(TRUE),(FALSE)) -> FALSE | L4: =IF(AND(OR($D4="BIO",$E4="BIO"),$K4=TRUE),1,0) -> 0 | M4: =IF(AND(OR($D4="NATURE",$E4="NATURE"),$K4=TRUE),1,0) -> 0 | N4: =IF(AND(OR($D4="CON",$E4="CON"),$K4=TRUE),1,0) -> 0 | O4: =IF(AND(OR($D4="BIODY",$E4="BIODY"),$K4=TRUE),1,0) -> 0 | P4: =IF(AND($I4<26,$K4=TRUE),1,0) -> 0 | Q4: =IF(AND((I4>25.99)*(I4<37),$K4=TRUE),1,0) -> 0 | R4: =IF(AND(36.99<$I4,$K4=TRUE),1,0) -> 0 | S4: 1 | T4: 0 | U4: =$G4*1.2*2 -> 40.32 | V4: =$G4*1.2*1.2 -> 24.192
S5: =SUM(S3:S4) -> 41 | T5: =SUM(T3:T4) -> 0
I7: TOTAL VINS | J7: TOTAL RUPTURES
I8: =(ROWS(CHAMPAGNE))-J8 -> 2 | J8: =COUNTIF(CHAMPAGNE,"VRAI") -> 0
I9: BIO | J9: BIO
I10: =COUNTIF(AGRICHA,"BIO")-J10 -> 0 | J10: =SUM(RBIOCHA) -> 0
I11: NATURE | J11: NATURE
I12: =COUNTIF(AGRICHA,"NATURE")-J12 -> 0 | J12: =SUM(RNATURECHA) -> 0
I13: CONVENTIONNEL | J13: CONVENTIONNEL
I14: =COUNTIF(AGRICHA,"CON")-J14 -> 2 | J14: =SUM(RCONCHA) -> 0
I15: BIODYNAMIE | J15: BIODYNAMIE
I16: =COUNTIF(AGRICHA,"BIODY")-J16 -> 0 | J16: =SUM(RBIODYETR) -> 0
I17: ENTREE DE GAMME | J17: ENTREE DE GAMME
I18: =COUNTIFS(PVTTCCHA,"<26")-J18 -> 0 | J18: =SUM(REGCHA) -> 0
I19: MILIEU DE GAMME | J19: MILIEU DE GAMME
I20: =SUMPRODUCT((PVTTCCHA>25.99)*(PVTTCCHA<37))-J20 -> 0 | J20: =SUM(RMGCHA) -> 0
I21: HAUT DE GAMME | J21: HAUT DE GAMME
I22: =COUNTIFS(PVTTCCHA,">36,99")-J22 -> 2 | J22: =SUM(RHGCHA) -> 0

Sheet Listes
A1: Rosés | C1: BIO | E1: Axel Gustoworld 0625338003
A2: Blancs | C2: BIODY | E2: Aymeric Vignapart 0670827124
A3: Bordeaux Sud-Ouest | C3: CON | E3: Biaggio Vinom 0778720063
A4: Bourgogne | C4: NATURE | E4: Camille 0674705816
A5: Beaujolais | E5: Cédric Schiltz 0612108579
A6: Languedoc | E6: Didier Bordas 0660995478
A7: Vallée du Rhône | E7: Emmanuel Meffre 0672386975
A8: Vallée de la Loire | E8: Franck 0651826004
A9: Alsace | E9: Gautherot 0325385003
A10: Etrangers | E10: Le clos des pères 0628086552
A11: Champagne | E11: Nicolas Jaboulet 0680320770
E12: Palette via Patrons
E13: Phillippe Potier 0680136645
